[Event "Titled Tuesday Blitz August 16 Early 2022"]
[White "Martinez, Shawn"]
[Black "Guz, Ari"]
[WhiteFideId "2039770"]
[BlackFideId "2825759"]
[WhiteElo "2174"]
[BlackElo "1913"]
[Result "0-1"]
[Round "05"]
[TimeControl "180+2"]
[Date "2022.08.18"]
[WhiteClock "0:00:00"]
[BlackClock "0:00:00"]

1. e4 {[%clk 0:00:00]}  e6 {[%clk 0:00:00]} 2. d4 {[%clk 0:00:00]}  d5 {[%clk 0:00:00]} 3. Bd3 {[%clk 0:00:00]}  dxe4 {[%clk 0:00:00]} 4. Bxe4 {[%clk 0:00:00]}  Nf6 {[%clk 0:00:00]} 5. Bf3 {[%clk 0:00:00]}  Be7 {[%clk 0:00:00]} 6. Nc3 {[%clk 0:00:00]}  O-O {[%clk 0:00:00]} 7. Be3 {[%clk 0:00:00]}  c5 {[%clk 0:00:00]} 8. Nge2 {[%clk 0:00:00]}  cxd4 {[%clk 0:00:00]} 9. Qxd4 {[%clk 0:00:00]}  Nc6 {[%clk 0:00:00]} 10. Bxc6 {[%clk 0:00:00]}  bxc6 {[%clk 0:00:00]} 11. O-O {[%clk 0:00:00]}  Nd5 {[%clk 0:00:00]} 12. Ne4 {[%clk 0:00:00]}  Ba6 {[%clk 0:00:00]} 13. c4 {[%clk 0:00:00]}  Nb4 {[%clk 0:00:00]} 14. Rac1 {[%clk 0:00:00]}  Nxa2 {[%clk 0:00:00]} 15. Qxd8 {[%clk 0:00:00]}  Rfxd8 {[%clk 0:00:00]} 16. Rc2 {[%clk 0:00:00]}  Nb4 {[%clk 0:00:00]} 17. Rc3 {[%clk 0:00:00]}  Nd5 {[%clk 0:00:00]} 18. cxd5 {[%clk 0:00:00]}  Bxe2 {[%clk 0:00:00]} 19. d6 {[%clk 0:00:00]}  Bxd6 {[%clk 0:00:00]} 20. Rfc1 {[%clk 0:00:00]}  Bb5 {[%clk 0:00:00]} 21. Bg5 {[%clk 0:00:00]}  f6 {[%clk 0:00:00]} 22. Nxd6 {[%clk 0:00:00]}  Rxd6 {[%clk 0:00:00]} 23. Be3 {[%clk 0:00:00]}  a5 {[%clk 0:00:00]} 24. h4 {[%clk 0:00:00]}  e5 {[%clk 0:00:00]} 25. h5 {[%clk 0:00:00]}  Kf7 {[%clk 0:00:00]} 26. g4 {[%clk 0:00:00]}  Rad8 {[%clk 0:00:00]} 27. Kh2 {[%clk 0:00:00]}  Rd1 {[%clk 0:00:00]} 28. R1c2 {[%clk 0:00:00]}  a4 {[%clk 0:00:00]} 29. Kg3 {[%clk 0:00:00]}  g6 {[%clk 0:00:00]} 30. h6 {[%clk 0:00:00]}  f5 {[%clk 0:00:00]} 31. Bg5 {[%clk 0:00:00]}  R8d3+ {[%clk 0:00:00]} 32. f3 {[%clk 0:00:00]}  e4 {[%clk 0:00:00]} 33. gxf5 {[%clk 0:00:00]}  gxf5 {[%clk 0:00:00]} 34. Kf4 {[%clk 0:00:00]}  e3 {[%clk 0:00:00]} 35. Kxf5 {[%clk 0:00:00]}  Rxc3 {[%clk 0:00:00]} 36. Rxc3 {[%clk 0:00:00]}  e2 {[%clk 0:00:00]} 37. Bh4 {[%clk 0:00:00]}  e1=Q {[%clk 0:00:00]} 38. Bxe1 {[%clk 0:00:00]}  Rxe1 {[%clk 0:00:00]} 39. f4 {[%clk 0:00:00]}  Re6 {[%clk 0:00:00]} 40. Rh3 {[%clk 0:00:00]}  Rf6+ {[%clk 0:00:00]} 41. Ke5 {[%clk 0:00:00]}  Ke7 {[%clk 0:00:00]} 42. f5 {[%clk 0:00:00]}  Rd6 {[%clk 0:00:00]} 43. Rg3 {[%clk 0:00:00]}  Rd5+ {[%clk 0:00:00]} 0-1


[Site "https://www.chess.com"]

[Event "Titled Tuesday Blitz August 16 Early 2022"]
[White "Matyukov, Petr"]
[Black "Rangel, Daniel"]
[WhiteFideId "4103688"]
[BlackFideId "2124475"]
[WhiteElo "2278"]
[BlackElo "2225"]
[Result "0-1"]
[Round "05"]
[TimeControl "180+2"]
[Date "2022.08.18"]
[WhiteClock "0:00:00"]
[BlackClock "0:00:00"]

1. d4 {[%clk 0:00:00]}  Nf6 {[%clk 0:00:00]} 2. c4 {[%clk 0:00:00]}  c5 {[%clk 0:00:00]} 3. d5 {[%clk 0:00:00]}  d6 {[%clk 0:00:00]} 4. Nc3 {[%clk 0:00:00]}  e5 {[%clk 0:00:00]} 5. dxe6 {[%clk 0:00:00]}  Bxe6 {[%clk 0:00:00]} 6. e3 {[%clk 0:00:00]}  Nc6 {[%clk 0:00:00]} 7. Nf3 {[%clk 0:00:00]}  Be7 {[%clk 0:00:00]} 8. Nd5 {[%clk 0:00:00]}  O-O {[%clk 0:00:00]} 9. Be2 {[%clk 0:00:00]}  Bxd5 {[%clk 0:00:00]} 10. cxd5 {[%clk 0:00:00]}  Nb4 {[%clk 0:00:00]} 11. Bc4 {[%clk 0:00:00]}  b5 {[%clk 0:00:00]} 12. Bxb5 {[%clk 0:00:00]}  Qa5 {[%clk 0:00:00]} 13. Bc4 {[%clk 0:00:00]}  Nc2+ {[%clk 0:00:00]} 14. Kf1 {[%clk 0:00:00]}  Nxa1 {[%clk 0:00:00]} 15. Bd2 {[%clk 0:00:00]}  Qb6 {[%clk 0:00:00]} 16. Qxa1 {[%clk 0:00:00]}  Ne4 {[%clk 0:00:00]} 17. Bc1 {[%clk 0:00:00]}  Bf6 {[%clk 0:00:00]} 18. Bd3 {[%clk 0:00:00]}  Rfe8 {[%clk 0:00:00]} 19. g3 {[%clk 0:00:00]}  Rab8 {[%clk 0:00:00]} 20. Bxe4 {[%clk 0:00:00]}  Rxe4 {[%clk 0:00:00]} 21. Nd2 {[%clk 0:00:00]}  Rb4 {[%clk 0:00:00]} 22. a3 {[%clk 0:00:00]}  Bxb2 {[%clk 0:00:00]} 23. Bxb2 {[%clk 0:00:00]}  Rxb2 {[%clk 0:00:00]} 24. Nc4 {[%clk 0:00:00]}  Rb1+ {[%clk 0:00:00]} 25. Kg2 {[%clk 0:00:00]}  Rxa1 {[%clk 0:00:00]} 26. Nxb6 {[%clk 0:00:00]}  Rxh1 {[%clk 0:00:00]} 27. Nd7 {[%clk 0:00:00]}  Rd8 {[%clk 0:00:00]} 0-1


[Site "https://www.chess.com"]

[Event "Titled Tuesday Blitz August 16 Early 2022"]
[White "Miszler, Levente"]
[Black "Bolanos, Fernando"]
[WhiteFideId "763276"]
[BlackFideId "3304094"]
[WhiteElo "1966"]
[BlackElo "2086"]
[Result "0-1"]
[Round "05"]
[TimeControl "180+2"]
[Date "2022.08.18"]
[WhiteClock "0:00:00"]
[BlackClock "0:00:00"]

1. Nf3 {[%clk 0:00:00]}  Nf6 {[%clk 0:00:00]} 2. g3 {[%clk 0:00:00]}  d5 {[%clk 0:00:00]} 3. Bg2 {[%clk 0:00:00]}  Bf5 {[%clk 0:00:00]} 4. O-O {[%clk 0:00:00]}  e6 {[%clk 0:00:00]} 5. Nh4 {[%clk 0:00:00]}  Be4 {[%clk 0:00:00]} 6. f3 {[%clk 0:00:00]}  Bg6 {[%clk 0:00:00]} 7. Nxg6 {[%clk 0:00:00]}  hxg6 {[%clk 0:00:00]} 8. d4 {[%clk 0:00:00]}  c6 {[%clk 0:00:00]} 9. e4 {[%clk 0:00:00]}  Nbd7 {[%clk 0:00:00]} 10. e5 {[%clk 0:00:00]}  Ng8 {[%clk 0:00:00]} 11. c3 {[%clk 0:00:00]}  Be7 {[%clk 0:00:00]} 12. Be3 {[%clk 0:00:00]}  Nh6 {[%clk 0:00:00]} 13. g4 {[%clk 0:00:00]}  Bg5 {[%clk 0:00:00]} 14. f4 {[%clk 0:00:00]}  Bh4 {[%clk 0:00:00]} 15. Nd2 {[%clk 0:00:00]}  Nb6 {[%clk 0:00:00]} 16. h3 {[%clk 0:00:00]}  Be7 {[%clk 0:00:00]} 17. a4 {[%clk 0:00:00]}  Qc7 {[%clk 0:00:00]} 18. a5 {[%clk 0:00:00]}  Nd7 {[%clk 0:00:00]} 19. b4 {[%clk 0:00:00]}  Rc8 {[%clk 0:00:00]} 20. Qe2 {[%clk 0:00:00]}  b5 {[%clk 0:00:00]} 21. a6 {[%clk 0:00:00]}  Rb8 {[%clk 0:00:00]} 22. Nb3 {[%clk 0:00:00]}  Rb6 {[%clk 0:00:00]} 23. Nc5 {[%clk 0:00:00]}  Nb8 {[%clk 0:00:00]} 24. Ra2 {[%clk 0:00:00]}  Qc8 {[%clk 0:00:00]} 25. Rfa1 {[%clk 0:00:00]}  O-O {[%clk 0:00:00]} 26. f5 {[%clk 0:00:00]}  exf5 {[%clk 0:00:00]} 27. g5 {[%clk 0:00:00]}  f4 {[%clk 0:00:00]} 28. Bxf4 {[%clk 0:00:00]}  Nf5 {[%clk 0:00:00]} 29. Bf3 {[%clk 0:00:00]}  Bxc5 {[%clk 0:00:00]} 30. bxc5 {[%clk 0:00:00]}  Rxa6 {[%clk 0:00:00]} 31. Rxa6 {[%clk 0:00:00]}  Nxa6 {[%clk 0:00:00]} 32. Bg4 {[%clk 0:00:00]}  Nc7 {[%clk 0:00:00]} 33. Rxa7 {[%clk 0:00:00]}  Ne6 {[%clk 0:00:00]} 34. Bc1 {[%clk 0:00:00]}  b4 {[%clk 0:00:00]} 35. cxb4 {[%clk 0:00:00]}  Qb8 {[%clk 0:00:00]} 36. Ra4 {[%clk 0:00:00]}  Nexd4 {[%clk 0:00:00]} 37. Qa6 {[%clk 0:00:00]}  Qxe5 {[%clk 0:00:00]} 38. Qd3 {[%clk 0:00:00]}  Qe1+ {[%clk 0:00:00]} 39. Kg2 {[%clk 0:00:00]}  Qxc1 {[%clk 0:00:00]} 40. Ra2 {[%clk 0:00:00]}  Nh4+ {[%clk 0:00:00]} 41. Kh2 {[%clk 0:00:00]}  Qf4+ {[%clk 0:00:00]} 42. Qg3 {[%clk 0:00:00]}  Nhf3+ {[%clk 0:00:00]} 43. Kg2 {[%clk 0:00:00]}  Qxg3+ {[%clk 0:00:00]} 44. Kxg3 {[%clk 0:00:00]}  Nxg5 {[%clk 0:00:00]} 45. Rd2 {[%clk 0:00:00]}  Ne4+ {[%clk 0:00:00]} 46. Kf4 {[%clk 0:00:00]}  Nxd2 {[%clk 0:00:00]} 47. Ke5 {[%clk 0:00:00]}  N2b3 {[%clk 0:00:00]} 48. Kd6 {[%clk 0:00:00]}  f5 {[%clk 0:00:00]} 49. Bd1 {[%clk 0:00:00]}  Rb8 {[%clk 0:00:00]} 50. Bxb3 {[%clk 0:00:00]}  Nxb3 {[%clk 0:00:00]} 51. Kxc6 {[%clk 0:00:00]}  Rxb4 {[%clk 0:00:00]} 52. Kxd5 {[%clk 0:00:00]}  Nxc5 {[%clk 0:00:00]} 53. Kxc5 {[%clk 0:00:00]}  Re4 {[%clk 0:00:00]} 0-1


[Site "https://www.chess.com"]

[Event "Titled Tuesday Blitz August 16 Early 2022"]
[White "Molina, Roberto Junio Brito"]
[Black "Perez Gormaz, Matias"]
[WhiteFideId "2109450"]
[BlackFideId "3406342"]
[WhiteElo "2403"]
[BlackElo "2341"]
[Result "1-0"]
[Round "05"]
[TimeControl "180+2"]
[Date "2022.08.18"]
[WhiteClock "0:00:00"]
[BlackClock "0:00:00"]

1. d4 {[%clk 0:00:00]}  d5 {[%clk 0:00:00]} 2. Nf3 {[%clk 0:00:00]}  Nf6 {[%clk 0:00:00]} 3. e3 {[%clk 0:00:00]}  e6 {[%clk 0:00:00]} 4. Bd3 {[%clk 0:00:00]}  b6 {[%clk 0:00:00]} 5. O-O {[%clk 0:00:00]}  Bb7 {[%clk 0:00:00]} 6. Qe2 {[%clk 0:00:00]}  Nbd7 {[%clk 0:00:00]} 7. b3 {[%clk 0:00:00]}  Bd6 {[%clk 0:00:00]} 8. Bb2 {[%clk 0:00:00]}  O-O {[%clk 0:00:00]} 9. Nbd2 {[%clk 0:00:00]}  Ne4 {[%clk 0:00:00]} 10. Ne5 {[%clk 0:00:00]}  Bxe5 {[%clk 0:00:00]} 11. dxe5 {[%clk 0:00:00]}  Nxd2 {[%clk 0:00:00]} 12. Qxd2 {[%clk 0:00:00]}  c5 {[%clk 0:00:00]} 13. Qe2 {[%clk 0:00:00]}  Rc8 {[%clk 0:00:00]} 14. c4 {[%clk 0:00:00]}  Qe7 {[%clk 0:00:00]} 15. f4 {[%clk 0:00:00]}  f5 {[%clk 0:00:00]} 16. cxd5 {[%clk 0:00:00]}  Bxd5 {[%clk 0:00:00]} 17. e4 {[%clk 0:00:00]}  fxe4 {[%clk 0:00:00]} 18. Bxe4 {[%clk 0:00:00]}  Bxe4 {[%clk 0:00:00]} 19. Qxe4 {[%clk 0:00:00]}  c4 {[%clk 0:00:00]} 20. Rad1 {[%clk 0:00:00]}  c3 {[%clk 0:00:00]} 21. Bc1 {[%clk 0:00:00]}  Nc5 {[%clk 0:00:00]} 22. Qe3 {[%clk 0:00:00]}  Nb7 {[%clk 0:00:00]} 23. Rd3 {[%clk 0:00:00]}  c2 {[%clk 0:00:00]} 24. g3 {[%clk 0:00:00]}  Rc7 {[%clk 0:00:00]} 25. Rf2 {[%clk 0:00:00]}  Rfc8 {[%clk 0:00:00]} 26. Rfd2 {[%clk 0:00:00]}  h6 {[%clk 0:00:00]} 27. Kg2 {[%clk 0:00:00]}  Nc5 {[%clk 0:00:00]} 28. Rd6 {[%clk 0:00:00]}  Nb7 {[%clk 0:00:00]} 29. R6d4 {[%clk 0:00:00]}  Qc5 {[%clk 0:00:00]} 30. R2d3 {[%clk 0:00:00]}  Qa5 {[%clk 0:00:00]} 31. Ra4 {[%clk 0:00:00]}  Qb5 {[%clk 0:00:00]} 32. Rxa7 {[%clk 0:00:00]}  Qc6+ {[%clk 0:00:00]} 33. Qf3 {[%clk 0:00:00]}  Qc5 {[%clk 0:00:00]} 34. Rxb7 {[%clk 0:00:00]} 1-0


[Site "https://www.chess.com"]

[Event "Titled Tuesday Blitz August 16 Early 2022"]
[White "Nathan, Nitish"]
[Black "Jaferian, Koosha"]
[WhiteFideId "30927870"]
[BlackFideId "12507440"]
[WhiteElo "1813"]
[BlackElo "2030"]
[Result "0-1"]
[Round "05"]
[TimeControl "180+2"]
[Date "2022.08.18"]
[WhiteClock "0:00:00"]
[BlackClock "0:00:00"]

1. d4 {[%clk 0:00:00]}  Nf6 {[%clk 0:00:00]} 2. Bf4 {[%clk 0:00:00]}  d5 {[%clk 0:00:00]} 3. e3 {[%clk 0:00:00]}  e6 {[%clk 0:00:00]} 4. Nd2 {[%clk 0:00:00]}  Bd6 {[%clk 0:00:00]} 5. Bg3 {[%clk 0:00:00]}  c5 {[%clk 0:00:00]} 6. c3 {[%clk 0:00:00]}  Nc6 {[%clk 0:00:00]} 7. Ngf3 {[%clk 0:00:00]}  O-O {[%clk 0:00:00]} 8. Bd3 {[%clk 0:00:00]}  b6 {[%clk 0:00:00]} 9. O-O {[%clk 0:00:00]}  Bxg3 {[%clk 0:00:00]} 10. hxg3 {[%clk 0:00:00]}  Bb7 {[%clk 0:00:00]} 11. Re1 {[%clk 0:00:00]}  Ne7 {[%clk 0:00:00]} 12. e4 {[%clk 0:00:00]}  dxe4 {[%clk 0:00:00]} 13. Nxe4 {[%clk 0:00:00]}  Nxe4 {[%clk 0:00:00]} 14. Bxe4 {[%clk 0:00:00]}  Bxe4 {[%clk 0:00:00]} 15. Rxe4 {[%clk 0:00:00]}  Qc7 {[%clk 0:00:00]} 16. Rh4 {[%clk 0:00:00]}  Nf5 {[%clk 0:00:00]} 17. Rh1 {[%clk 0:00:00]}  Rfd8 {[%clk 0:00:00]} 18. g4 {[%clk 0:00:00]}  Nh6 {[%clk 0:00:00]} 19. g5 {[%clk 0:00:00]}  Nf5 {[%clk 0:00:00]} 20. Ne5 {[%clk 0:00:00]}  cxd4 {[%clk 0:00:00]} 21. cxd4 {[%clk 0:00:00]}  Rxd4 {[%clk 0:00:00]} 22. Qh5 {[%clk 0:00:00]}  h6 {[%clk 0:00:00]} 23. gxh6 {[%clk 0:00:00]}  Qxe5 {[%clk 0:00:00]} 24. hxg7 {[%clk 0:00:00]}  Qxg7 {[%clk 0:00:00]} 25. Qf3 {[%clk 0:00:00]}  Rad8 {[%clk 0:00:00]} 26. Rh5 {[%clk 0:00:00]}  Rh4 {[%clk 0:00:00]} 27. Rxh4 {[%clk 0:00:00]}  Nxh4 {[%clk 0:00:00]} 28. Qf4 {[%clk 0:00:00]}  Qxg2# {[%clk 0:00:00]} 0-1


[Site "https://www.chess.com"]

[Event "Titled Tuesday Blitz August 16 Early 2022"]
[White "Navarrete Mendez, Gonzalo Alberto"]
[Black "Gubanov, Oleg"]
[WhiteFideId "5106850"]
[BlackFideId "14115115"]
[WhiteElo "2261"]
[BlackElo "2080"]
[Result "1-0"]
[Round "05"]
[TimeControl "180+2"]
[Date "2022.08.18"]
[WhiteClock "0:00:00"]
[BlackClock "0:00:00"]

1. e4 {[%clk 0:00:00]}  Nf6 {[%clk 0:00:00]} 2. Nc3 {[%clk 0:00:00]}  d5 {[%clk 0:00:00]} 3. e5 {[%clk 0:00:00]}  d4 {[%clk 0:00:00]} 4. exf6 {[%clk 0:00:00]}  dxc3 {[%clk 0:00:00]} 5. Qh5 {[%clk 0:00:00]}  cxb2 {[%clk 0:00:00]} 6. Bxb2 {[%clk 0:00:00]}  exf6 {[%clk 0:00:00]} 7. Bc4 {[%clk 0:00:00]}  Qd7 {[%clk 0:00:00]} 8. O-O-O {[%clk 0:00:00]}  Nc6 {[%clk 0:00:00]} 9. Nf3 {[%clk 0:00:00]}  Bd6 {[%clk 0:00:00]} 10. Rde1+ {[%clk 0:00:00]}  Kf8 {[%clk 0:00:00]} 11. Re3 {[%clk 0:00:00]}  Nd8 {[%clk 0:00:00]} 12. Rhe1 {[%clk 0:00:00]}  Ne6 {[%clk 0:00:00]} 13. Nd4 {[%clk 0:00:00]}  Nf4 {[%clk 0:00:00]} 14. Re8+ {[%clk 0:00:00]}  Qxe8 {[%clk 0:00:00]} 15. Rxe8+ {[%clk 0:00:00]}  Kxe8 {[%clk 0:00:00]} 16. Qxf7+ {[%clk 0:00:00]}  Kd8 {[%clk 0:00:00]} 17. Qxg7 {[%clk 0:00:00]}  Rf8 {[%clk 0:00:00]} 18. Nb5 {[%clk 0:00:00]}  Be7 {[%clk 0:00:00]} 19. Nxc7 {[%clk 0:00:00]}  Nh5 {[%clk 0:00:00]} 20. Qxh7 {[%clk 0:00:00]}  Rb8 {[%clk 0:00:00]} 21. Ne6+ {[%clk 0:00:00]}  Bxe6 {[%clk 0:00:00]} 22. Bxe6 {[%clk 0:00:00]}  Nf4 {[%clk 0:00:00]} 23. Bg4 {[%clk 0:00:00]}  Nd5 {[%clk 0:00:00]} 24. Qd3 {[%clk 0:00:00]}  Kc7 {[%clk 0:00:00]} 25. Qxd5 {[%clk 0:00:00]}  Rbd8 {[%clk 0:00:00]} 26. Qc4+ {[%clk 0:00:00]}  Kb8 {[%clk 0:00:00]} 27. Bd4 {[%clk 0:00:00]}  f5 {[%clk 0:00:00]} 28. Bf3 {[%clk 0:00:00]}  Ba3+ {[%clk 0:00:00]} 29. Kd1 {[%clk 0:00:00]}  Rd7 {[%clk 0:00:00]} 30. c3 {[%clk 0:00:00]}  Bd6 {[%clk 0:00:00]} 31. Qb5 {[%clk 0:00:00]}  Rfd8 {[%clk 0:00:00]} 32. Kc2 {[%clk 0:00:00]}  Be7 {[%clk 0:00:00]} 33. Qxf5 {[%clk 0:00:00]}  a6 {[%clk 0:00:00]} 34. h4 {[%clk 0:00:00]}  Rc7 {[%clk 0:00:00]} 35. Be5 {[%clk 0:00:00]}  Bd6 {[%clk 0:00:00]} 36. Bxd6 {[%clk 0:00:00]}  Rxd6 {[%clk 0:00:00]} 37. Qf8+ {[%clk 0:00:00]} 1-0


[Site "https://www.chess.com"]

[Event "Titled Tuesday Blitz August 16 Early 2022"]
[White "O`Gorman, Tom"]
[Black "Nunez V, Gustavo Eduardo"]
[WhiteFideId "2508249"]
[BlackFideId "4403690"]
[WhiteElo "2270"]
[BlackElo "2228"]
[Result "1-0"]
[Round "05"]
[TimeControl "180+2"]
[Date "2022.08.18"]
[WhiteClock "0:00:00"]
[BlackClock "0:00:00"]

1. Nf3 {[%clk 0:00:00]}  c5 {[%clk 0:00:00]} 2. g3 {[%clk 0:00:00]}  Nc6 {[%clk 0:00:00]} 3. Bg2 {[%clk 0:00:00]}  g6 {[%clk 0:00:00]} 4. O-O {[%clk 0:00:00]}  Bg7 {[%clk 0:00:00]} 5. c3 {[%clk 0:00:00]}  d5 {[%clk 0:00:00]} 6. d4 {[%clk 0:00:00]}  cxd4 {[%clk 0:00:00]} 7. cxd4 {[%clk 0:00:00]}  Nf6 {[%clk 0:00:00]} 8. Ne5 {[%clk 0:00:00]}  O-O {[%clk 0:00:00]} 9. Nc3 {[%clk 0:00:00]}  Bf5 {[%clk 0:00:00]} 10. Bf4 {[%clk 0:00:00]}  Rc8 {[%clk 0:00:00]} 11. Nxc6 {[%clk 0:00:00]}  Rxc6 {[%clk 0:00:00]} 12. Be5 {[%clk 0:00:00]}  Ne4 {[%clk 0:00:00]} 13. Bxe4 {[%clk 0:00:00]}  Bxe4 {[%clk 0:00:00]} 14. Bxg7 {[%clk 0:00:00]}  Kxg7 {[%clk 0:00:00]} 15. Nxe4 {[%clk 0:00:00]}  dxe4 {[%clk 0:00:00]} 16. e3 {[%clk 0:00:00]}  e5 {[%clk 0:00:00]} 17. dxe5 {[%clk 0:00:00]}  Qxd1 {[%clk 0:00:00]} 18. Rfxd1 {[%clk 0:00:00]}  Re6 {[%clk 0:00:00]} 19. Rd7 {[%clk 0:00:00]}  Rb8 {[%clk 0:00:00]} 20. Rc1 {[%clk 0:00:00]}  Rxe5 {[%clk 0:00:00]} 21. Rcc7 {[%clk 0:00:00]}  Rf5 {[%clk 0:00:00]} 22. Rxb7 {[%clk 0:00:00]}  Rc8 {[%clk 0:00:00]} 23. Rbc7 {[%clk 0:00:00]}  Rb8 {[%clk 0:00:00]} 24. b3 {[%clk 0:00:00]}  a5 {[%clk 0:00:00]} 25. Ra7 {[%clk 0:00:00]}  Rc8 {[%clk 0:00:00]} 26. Rd2 {[%clk 0:00:00]}  Rc1+ {[%clk 0:00:00]} 27. Kg2 {[%clk 0:00:00]}  h5 {[%clk 0:00:00]} 28. Re7 {[%clk 0:00:00]}  h4 {[%clk 0:00:00]} 29. Rxe4 {[%clk 0:00:00]}  h3+ {[%clk 0:00:00]} 30. Kxh3 {[%clk 0:00:00]}  Rg1 {[%clk 0:00:00]} 31. Kg4 {[%clk 0:00:00]}  Rg2 {[%clk 0:00:00]} 32. Rf4 {[%clk 0:00:00]}  Rh5 {[%clk 0:00:00]} 33. h4 {[%clk 0:00:00]}  f5+ {[%clk 0:00:00]} 34. Kf3 {[%clk 0:00:00]}  Rg1 {[%clk 0:00:00]} 35. Ra4 {[%clk 0:00:00]}  f4 {[%clk 0:00:00]} 36. Rxf4 {[%clk 0:00:00]}  Ra1 {[%clk 0:00:00]} 37. b4 {[%clk 0:00:00]}  a4 {[%clk 0:00:00]} 38. b5 {[%clk 0:00:00]}  Rxb5 {[%clk 0:00:00]} 39. Rxa4 {[%clk 0:00:00]}  Rf5+ {[%clk 0:00:00]} 40. Rf4 {[%clk 0:00:00]}  Ra5 {[%clk 0:00:00]} 41. Rg4 {[%clk 0:00:00]}  Kh6 {[%clk 0:00:00]} 42. Rd6 {[%clk 0:00:00]}  Rf5+ {[%clk 0:00:00]} 43. Rf4 {[%clk 0:00:00]}  Rxf4+ {[%clk 0:00:00]} 44. exf4 {[%clk 0:00:00]}  Rxa2 {[%clk 0:00:00]} 45. f5 {[%clk 0:00:00]}  Ra3+ {[%clk 0:00:00]} 46. Kg2 {[%clk 0:00:00]}  Kh5 {[%clk 0:00:00]} 47. fxg6 {[%clk 0:00:00]}  Ra7 {[%clk 0:00:00]} 48. Kh3 {[%clk 0:00:00]}  Rg7 {[%clk 0:00:00]} 49. g4+ {[%clk 0:00:00]}  Kh6 {[%clk 0:00:00]} 50. h5 {[%clk 0:00:00]}  Kg5 {[%clk 0:00:00]} 51. Kg3 {[%clk 0:00:00]} 1-0


[Site "https://www.chess.com"]

[Event "Titled Tuesday Blitz August 16 Early 2022"]
[White "Omariev, Maksim"]
[Black "Avalos Parra, Joao"]
[WhiteFideId "4193423"]
[BlackFideId "3402541"]
[WhiteElo "2304"]
[BlackElo "2173"]
[Result "1-0"]
[Round "05"]
[TimeControl "180+2"]
[Date "2022.08.18"]
[WhiteClock "0:00:00"]
[BlackClock "0:00:00"]

1. g4 {[%clk 0:00:00]}  d5 {[%clk 0:00:00]} 2. Bg2 {[%clk 0:00:00]}  Bxg4 {[%clk 0:00:00]} 3. c4 {[%clk 0:00:00]}  c6 {[%clk 0:00:00]} 4. Qb3 {[%clk 0:00:00]}  Nf6 {[%clk 0:00:00]} 5. Qxb7 {[%clk 0:00:00]}  Nbd7 {[%clk 0:00:00]} 6. d3 {[%clk 0:00:00]}  Rc8 {[%clk 0:00:00]} 7. Nc3 {[%clk 0:00:00]}  Nc5 {[%clk 0:00:00]} 8. Qxa7 {[%clk 0:00:00]}  e5 {[%clk 0:00:00]} 9. Bg5 {[%clk 0:00:00]}  Be7 {[%clk 0:00:00]} 10. Bxf6 {[%clk 0:00:00]}  gxf6 {[%clk 0:00:00]} 11. cxd5 {[%clk 0:00:00]}  Ra8 {[%clk 0:00:00]} 12. Qb6 {[%clk 0:00:00]}  Qxb6 {[%clk 0:00:00]} 13. Rb1 {[%clk 0:00:00]}  cxd5 {[%clk 0:00:00]} 14. Bxd5 {[%clk 0:00:00]}  Rd8 {[%clk 0:00:00]} 15. Nf3 {[%clk 0:00:00]}  Be6 {[%clk 0:00:00]} 16. Bxe6 {[%clk 0:00:00]}  fxe6 {[%clk 0:00:00]} 17. Nd2 {[%clk 0:00:00]}  Qb7 {[%clk 0:00:00]} 18. Rg1 {[%clk 0:00:00]}  Kf7 {[%clk 0:00:00]} 19. b4 {[%clk 0:00:00]}  Nd7 {[%clk 0:00:00]} 20. b5 {[%clk 0:00:00]}  Rhg8 {[%clk 0:00:00]} 21. Rg3 {[%clk 0:00:00]}  Rxg3 {[%clk 0:00:00]} 22. hxg3 {[%clk 0:00:00]}  Bc5 {[%clk 0:00:00]} 23. Nce4 {[%clk 0:00:00]}  Bb6 {[%clk 0:00:00]} 24. Nd6+ {[%clk 0:00:00]}  Ke7 {[%clk 0:00:00]} 25. Nxb7 {[%clk 0:00:00]}  Ra8 {[%clk 0:00:00]} 26. Nc4 {[%clk 0:00:00]}  Rxa2 {[%clk 0:00:00]} 27. Nxb6 {[%clk 0:00:00]}  Nxb6 {[%clk 0:00:00]} 28. Nc5 {[%clk 0:00:00]}  Kd6 {[%clk 0:00:00]} 29. Ne4+ {[%clk 0:00:00]}  Ke7 {[%clk 0:00:00]} 30. Rc1 {[%clk 0:00:00]}  Nd5 {[%clk 0:00:00]} 31. b6 {[%clk 0:00:00]}  Rb2 {[%clk 0:00:00]} 32. Nc5 {[%clk 0:00:00]}  Rxb6 {[%clk 0:00:00]} 33. e4 {[%clk 0:00:00]}  Nb4 {[%clk 0:00:00]} 34. Ke2 {[%clk 0:00:00]}  Rc6 {[%clk 0:00:00]} 35. Rc4 {[%clk 0:00:00]}  Na2 {[%clk 0:00:00]} 36. Rc2 {[%clk 0:00:00]}  Nb4 {[%clk 0:00:00]} 37. Rc4 {[%clk 0:00:00]}  Na2 {[%clk 0:00:00]} 38. Ra4 {[%clk 0:00:00]}  Rxc5 {[%clk 0:00:00]} 39. Rxa2 {[%clk 0:00:00]}  Kf7 {[%clk 0:00:00]} 40. Ra7+ {[%clk 0:00:00]}  Kg6 {[%clk 0:00:00]} 41. Ke3 {[%clk 0:00:00]}  Rc2 {[%clk 0:00:00]} 42. Re7 {[%clk 0:00:00]}  Rc6 {[%clk 0:00:00]} 43. f4 {[%clk 0:00:00]}  exf4+ {[%clk 0:00:00]} 44. gxf4 {[%clk 0:00:00]}  Ra6 {[%clk 0:00:00]} 45. Re8 {[%clk 0:00:00]}  h5 {[%clk 0:00:00]} 46. Rg8+ {[%clk 0:00:00]}  Kh7 {[%clk 0:00:00]} 47. Rg1 {[%clk 0:00:00]}  Kh6 {[%clk 0:00:00]} 48. Kd4 {[%clk 0:00:00]}  Rd6+ {[%clk 0:00:00]} 49. Kc4 {[%clk 0:00:00]}  e5 {[%clk 0:00:00]} 50. f5 {[%clk 0:00:00]}  Rd4+ {[%clk 0:00:00]} 51. Kc3 {[%clk 0:00:00]}  h4 {[%clk 0:00:00]} 52. Rg6+ {[%clk 0:00:00]}  Kh5 {[%clk 0:00:00]} 53. Rxf6 {[%clk 0:00:00]}  h3 {[%clk 0:00:00]} 54. Rf8 {[%clk 0:00:00]}  Rd7 {[%clk 0:00:00]} 55. Rh8+ {[%clk 0:00:00]}  Kg4 {[%clk 0:00:00]} 56. f6 {[%clk 0:00:00]}  Kg3 {[%clk 0:00:00]} 57. Rh6 {[%clk 0:00:00]}  h2 {[%clk 0:00:00]} 58. d4 {[%clk 0:00:00]}  exd4+ {[%clk 0:00:00]} 59. Kd3 {[%clk 0:00:00]}  Kg2 {[%clk 0:00:00]} 60. e5 {[%clk 0:00:00]}  h1=Q {[%clk 0:00:00]} 61. Rxh1 {[%clk 0:00:00]}  Kxh1 {[%clk 0:00:00]} 62. e6 {[%clk 0:00:00]}  Ra7 {[%clk 0:00:00]} 63. f7 {[%clk 0:00:00]}  Re7 {[%clk 0:00:00]} 64. f8=Q {[%clk 0:00:00]}  Rxe6 {[%clk 0:00:00]} 65. Qf3+ {[%clk 0:00:00]}  Kh2 {[%clk 0:00:00]} 66. Qf4+ {[%clk 0:00:00]}  Kh1 {[%clk 0:00:00]} 67. Qh4+ {[%clk 0:00:00]}  Kg1 {[%clk 0:00:00]} 68. Qg4+ {[%clk 0:00:00]}  Kf1 {[%clk 0:00:00]} 69. Qxe6 {[%clk 0:00:00]}  Kf2 {[%clk 0:00:00]} 70. Qe2+ {[%clk 0:00:00]}  Kg1 {[%clk 0:00:00]} 71. Kxd4 {[%clk 0:00:00]}  Kh1 {[%clk 0:00:00]} 72. Ke4 {[%clk 0:00:00]}  Kg1 {[%clk 0:00:00]} 73. Kf3 {[%clk 0:00:00]}  Kh1 {[%clk 0:00:00]} 74. Qg2# {[%clk 0:00:00]} 1-0


[Site "https://www.chess.com"]